[Event "Late-Titled-Tuesday-Blitz-December-26-2023"]
[Site "Chess.com"]
[Date "2023.12.26"]
[Round "2"]
[White "b_6"]
[Black "tripledes"]
[Result "0-1"]
[WhiteElo "2439"]
[BlackElo "2221"]
[TimeControl "180+1"]
[EndTime "14:17:51 PST"]
[Termination "tripledes won by resignation"]

1. d4 {[%clk 0:02:58.1]} 1... f5 {[%clk 0:02:56.1]} 2. Nf3 {[%clk 0:02:57.2]}
2... e6 {[%clk 0:02:55.9]} 3. Bf4 {[%clk 0:02:57.5]} 3... Nf6 {[%clk 0:02:55.5]}
4. e3 {[%clk 0:02:57.8]} 4... b6 {[%clk 0:02:55.9]} 5. Bd3 {[%clk 0:02:57.1]}
5... Bb7 {[%clk 0:02:56.2]} 6. O-O {[%clk 0:02:57.7]} 6... Be7 {[%clk
0:02:54.7]} 7. h3 {[%clk 0:02:57.2]} 7... O-O {[%clk 0:02:54.6]} 8. c4 {[%clk
0:02:57.2]} 8... d6 {[%clk 0:02:54]} 9. Nc3 {[%clk 0:02:55.5]} 9... Ne4 {[%clk
0:02:52.1]} 10. Bxe4 {[%clk 0:02:54.8]} 10... fxe4 {[%clk 0:02:52]} 11. Nd2
{[%clk 0:02:55.4]} 11... d5 {[%clk 0:02:45.3]} 12. Qb3 {[%clk 0:02:55.1]} 12...
Nc6 {[%clk 0:02:38.9]} 13. cxd5 {[%clk 0:02:54.3]} 13... Na5 {[%clk 0:02:37]}
14. Qa4 {[%clk 0:02:43.9]} 14... exd5 {[%clk 0:02:30.3]} 15. b4 {[%clk
0:02:33.2]} 15... Nc6 {[%clk 0:02:14.2]} 16. b5 {[%clk 0:02:15.4]} 16... Nb4
{[%clk 0:02:14.3]} 17. f3 {[%clk 0:02:05.3]} 17... exf3 {[%clk 0:02:05.5]} 18.
Nxf3 {[%clk 0:02:02.7]} 18... a6 {[%clk 0:01:46.6]} 19. Qb3 {[%clk 0:01:55.2]}
19... axb5 {[%clk 0:01:12.1]} 20. Nxb5 {[%clk 0:01:54.5]} 20... Na6 {[%clk
0:01:11.4]} 21. Bh2 {[%clk 0:01:48.6]} 21... c6 {[%clk 0:01:11]} 22. Nc3 {[%clk
0:01:44.2]} 22... c5 {[%clk 0:01:09.2]} 23. dxc5 {[%clk 0:01:32.5]} 23... Nxc5
{[%clk 0:01:10.1]} 24. Qc2 {[%clk 0:01:30.2]} 24... Bf6 {[%clk 0:01:04]} 25. Nd4
{[%clk 0:01:28.7]} 25... Qe7 {[%clk 0:00:49.4]} 26. Nf5 {[%clk 0:01:23.2]} 26...
Qe6 {[%clk 0:00:49.1]} 27. Bd6 {[%clk 0:00:40.2]} 27... Bxc3 {[%clk 0:00:27.4]}
28. Bxf8 {[%clk 0:00:39.8]} 28... Rxf8 {[%clk 0:00:27.9]} 29. Qxc3 {[%clk
0:00:31.7]} 29... Rxf5 {[%clk 0:00:28]} 30. Rxf5 {[%clk 0:00:24.6]} 30... Qxf5
{[%clk 0:00:28.9]} 31. Rf1 {[%clk 0:00:25]} 31... Qe4 {[%clk 0:00:27.9]} 32. Rf4
{[%clk 0:00:19.9]} 32... d4 {[%clk 0:00:16.4]} 33. Rxe4 {[%clk 0:00:19.3]} 33...
dxc3 {[%clk 0:00:16.1]} 34. Rc4 {[%clk 0:00:19.7]} 34... Ne4 {[%clk 0:00:15.8]}
35. Rc7 {[%clk 0:00:14.8]} 35... Bd5 {[%clk 0:00:14.2]} 36. Kf1 {[%clk
0:00:12.2]} 36... Bxa2 {[%clk 0:00:14.4]} 37. Ke2 {[%clk 0:00:12.2]} 37... Bb1
{[%clk 0:00:13.8]} 38. Kd1 {[%clk 0:00:11.7]} 38... Bd3 {[%clk 0:00:13.5]} 39.
Kc1 {[%clk 0:00:08.6]} 39... Nc5 {[%clk 0:00:13.3]} 40. g4 {[%clk 0:00:07.5]}
40... Nb3+ {[%clk 0:00:13.2]} 41. Kd1 {[%clk 0:00:07.4]} 41... c2+ {[%clk
0:00:13.6]} 0-1

[Event "Late-Titled-Tuesday-Blitz-December-26-2023"]
[Site "Chess.com"]
[Date "2023.12.26"]
[Round "2"]
[White "chenxiaoyuer"]
[Black "maracayo"]
[Result "1-0"]
[WhiteElo "2726"]
[BlackElo "2382"]
[TimeControl "180+1"]
[EndTime "14:17:53 PST"]
[Termination "chenxiaoyuer won by resignation"]

1. e4 {[%clk 0:03:00.9]} 1... d6 {[%clk 0:03:00.2]} 2. d4 {[%clk 0:03:00.7]}
2... Nf6 {[%clk 0:03:00.8]} 3. Nc3 {[%clk 0:03:00.5]} 3... c6 {[%clk 0:03:01.4]}
4. Nf3 {[%clk 0:02:54]} 4... Qa5 {[%clk 0:03:01.9]} 5. Bd2 {[%clk 0:02:42.7]}
5... e5 {[%clk 0:03:00.9]} 6. dxe5 {[%clk 0:02:35.3]} 6... dxe5 {[%clk
0:03:01.8]} 7. Bc4 {[%clk 0:02:35.5]} 7... Qc5 {[%clk 0:02:59.6]} 8. Qe2 {[%clk
0:02:33.4]} 8... Be7 {[%clk 0:02:58.6]} 9. O-O-O {[%clk 0:02:27.9]} 9... b5
{[%clk 0:02:43.1]} 10. Bb3 {[%clk 0:02:23.3]} 10... Nbd7 {[%clk 0:02:30.4]} 11.
Nh4 {[%clk 0:02:07.6]} 11... g6 {[%clk 0:02:18.4]} 12. f4 {[%clk 0:02:01.9]}
12... a5 {[%clk 0:02:16]} 13. Be3 {[%clk 0:02:00]} 13... a4 {[%clk 0:01:51.7]}
14. Bxc5 {[%clk 0:01:59.1]} 14... Nxc5 {[%clk 0:01:51.1]} 15. fxe5 {[%clk
0:01:57.5]} 15... axb3 {[%clk 0:01:50.4]} 16. exf6 {[%clk 0:01:57]} 16... bxa2
{[%clk 0:01:49.3]} 17. Nxa2 {[%clk 0:01:54.6]} 17... Bxf6 {[%clk 0:01:48.3]} 18.
e5 {[%clk 0:01:47.3]} 18... Bxh4 {[%clk 0:01:46.3]} 19. Kb1 {[%clk 0:01:43]}
19... O-O {[%clk 0:01:44]} 20. g3 {[%clk 0:01:39.1]} 20... Be7 {[%clk 0:01:41]}
21. Nb4 {[%clk 0:01:36.4]} 21... Bb7 {[%clk 0:01:35.9]} 22. h4 {[%clk
0:01:35.4]} 22... Ra4 {[%clk 0:01:34.9]} 23. c3 {[%clk 0:01:33.4]} 23... Bc8
{[%clk 0:01:27.3]} 24. Rhf1 {[%clk 0:01:29.3]} 24... Rxb4 {[%clk 0:01:02.1]} 25.
cxb4 {[%clk 0:01:28.7]} 25... Na4 {[%clk 0:00:50.5]} 26. Qe4 {[%clk 0:01:27.1]}
26... Be6 {[%clk 0:00:45.4]} 27. h5 {[%clk 0:01:23.4]} 27... c5 {[%clk 0:00:41]}
28. hxg6 {[%clk 0:01:22.7]} 28... hxg6 {[%clk 0:00:39]} 29. Qc6 {[%clk 0:01:16]}
29... cxb4 {[%clk 0:00:27.9]} 30. Qxb5 {[%clk 0:01:15.5]} 30... Nc5 {[%clk
0:00:28]} 31. Qc6 {[%clk 0:01:11.3]} 31... Rc8 {[%clk 0:00:16.1]} 32. Qg2 {[%clk
0:01:06.2]} 32... Bb3 {[%clk 0:00:13.4]} 33. e6 {[%clk 0:01:02.9]} 33... Nxe6
{[%clk 0:00:12]} 34. Rc1 {[%clk 0:01:02.7]} 34... Rb8 {[%clk 0:00:10.8]} 35. Qe4
{[%clk 0:01:00.4]} 35... Bg5 {[%clk 0:00:08.5]} 36. Qe5 {[%clk 0:01:00]} 36...
Re8 {[%clk 0:00:07.2]} 37. Rce1 {[%clk 0:00:59.4]} 37... f6 {[%clk 0:00:07]} 38.
Qe4 {[%clk 0:00:58.9]} 38... Ng7 {[%clk 0:00:05.8]} 39. Qxe8+ {[%clk 0:00:58.5]}
39... Nxe8 {[%clk 0:00:06.7]} 40. Rxe8+ {[%clk 0:00:58.5]} 40... Kf7 {[%clk
0:00:07.6]} 41. Re2 {[%clk 0:00:58.4]} 41... Bc4 {[%clk 0:00:08.5]} 42. Ref2
{[%clk 0:00:59]} 42... Bxf1 {[%clk 0:00:08.5]} 43. Rxf1 {[%clk 0:00:59.9]} 43...
Ke6 {[%clk 0:00:09.1]} 44. Kc2 {[%clk 0:01:00.5]} 44... Ke5 {[%clk 0:00:09.2]}
45. Kd3 {[%clk 0:01:01]} 45... Kd5 {[%clk 0:00:08.5]} 46. Ra1 {[%clk 0:01:01.2]}
46... f5 {[%clk 0:00:06.7]} 47. Ra5+ {[%clk 0:01:01.3]} 47... Ke6 {[%clk
0:00:06.3]} 48. b3 {[%clk 0:01:02.2]} 48... Kf7 {[%clk 0:00:07.1]} 49. Rb5
{[%clk 0:01:01.1]} 49... Be7 {[%clk 0:00:07.1]} 50. Ke3 {[%clk 0:01:01.7]} 50...
Ke6 {[%clk 0:00:07.8]} 51. Kf3 {[%clk 0:01:02.2]} 51... g5 {[%clk 0:00:08.3]}
52. Rb6+ {[%clk 0:01:02.6]} 52... Bd6 {[%clk 0:00:08.2]} 53. Rb5 {[%clk
0:01:02.7]} 53... g4+ {[%clk 0:00:08.3]} 54. Kg2 {[%clk 0:01:02.7]} 54... Be5
{[%clk 0:00:08.5]} 55. Rxb4 {[%clk 0:01:02.3]} 55... Bd6 {[%clk 0:00:09.4]} 56.
Rc4 {[%clk 0:01:02.6]} 56... Ke5 {[%clk 0:00:10.3]} 57. Rc2 {[%clk 0:00:59.3]}
57... Kd5 {[%clk 0:00:11.2]} 58. Kf2 {[%clk 0:00:59.7]} 58... Kd4 {[%clk
0:00:09.6]} 59. Rd2+ {[%clk 0:00:59]} 59... Kc5 {[%clk 0:00:10.5]} 60. Rxd6
{[%clk 0:00:59.2]} 60... Kxd6 {[%clk 0:00:10.5]} 61. Ke3 {[%clk 0:01:00.1]}
61... Kc5 {[%clk 0:00:09.9]} 62. Kf4 {[%clk 0:01:00]} 1-0

[Event "Late-Titled-Tuesday-Blitz-December-26-2023"]
[Site "Chess.com"]
[Date "2023.12.26"]
[Round "2"]
[White "DanielNaroditsky"]
[Black "anasta10"]
[Result "1-0"]
[WhiteElo "3113"]
[BlackElo "2625"]
[TimeControl "180+1"]
[EndTime "14:17:55 PST"]
[Termination "DanielNaroditsky won by resignation"]

1. e4 {[%clk 0:03:00.9]} 1... e6 {[%clk 0:02:59.9]} 2. d4 {[%clk 0:03:00.7]}
2... d5 {[%clk 0:03:00.2]} 3. Nd2 {[%clk 0:03:01.4]} 3... Be7 {[%clk 0:02:59]}
4. Ngf3 {[%clk 0:03:01.6]} 4... Nf6 {[%clk 0:02:58.4]} 5. e5 {[%clk 0:03:02.4]}
5... Nfd7 {[%clk 0:02:58.7]} 6. Bd3 {[%clk 0:03:03.3]} 6... c5 {[%clk
0:02:58.9]} 7. c3 {[%clk 0:03:04]} 7... Nc6 {[%clk 0:02:59.2]} 8. O-O {[%clk
0:03:04.5]} 8... f6 {[%clk 0:02:53.1]} 9. exf6 {[%clk 0:03:00.6]} 9... Nxf6
{[%clk 0:02:54]} 10. Re1 {[%clk 0:02:57.6]} 10... cxd4 {[%clk 0:02:41.8]} 11.
cxd4 {[%clk 0:02:55]} 11... O-O {[%clk 0:02:40.8]} 12. Nf1 {[%clk 0:02:54.3]}
12... h6 {[%clk 0:02:35.8]} 13. Ng3 {[%clk 0:02:47.4]} 13... Bd6 {[%clk
0:02:24.2]} 14. Bb1 {[%clk 0:02:15.7]} 14... Qc7 {[%clk 0:02:15.1]} 15. Qd3
{[%clk 0:01:56.6]} 15... Nb4 {[%clk 0:01:57.5]} 16. Qg6 {[%clk 0:01:43.5]} 16...
Qf7 {[%clk 0:01:56.5]} 17. Qxf7+ {[%clk 0:01:38.8]} 17... Kxf7 {[%clk
0:01:52.9]} 18. Bd2 {[%clk 0:01:26.7]} 18... Nc6 {[%clk 0:01:52]} 19. Bc3 {[%clk
0:01:27.2]} 19... Bd7 {[%clk 0:01:46.7]} 20. Bd3 {[%clk 0:01:26.4]} 20... a6
{[%clk 0:01:34]} 21. a3 {[%clk 0:01:20.6]} 21... Rfc8 {[%clk 0:01:15.9]} 22.
Ne5+ {[%clk 0:01:07]} 22... Bxe5 {[%clk 0:01:08.9]} 23. dxe5 {[%clk 0:01:07.9]}
23... Ng8 {[%clk 0:01:09.3]} 24. f4 {[%clk 0:01:05.3]} 24... g6 {[%clk
0:01:03.5]} 25. Ne2 {[%clk 0:00:50.7]} 25... Nge7 {[%clk 0:01:03]} 26. Rac1
{[%clk 0:00:44.5]} 26... Na7 {[%clk 0:00:55.2]} 27. Nd4 {[%clk 0:00:36.1]} 27...
Nf5 {[%clk 0:00:53.5]} 28. Nf3 {[%clk 0:00:27.9]} 28... Bb5 {[%clk 0:00:50.8]}
29. Bb1 {[%clk 0:00:27.6]} 29... Ne7 {[%clk 0:00:46.2]} 30. g4 {[%clk
0:00:25.8]} 30... Bc4 {[%clk 0:00:40.3]} 31. f5 {[%clk 0:00:22.3]} 31... gxf5
{[%clk 0:00:40.3]} 32. gxf5 {[%clk 0:00:23.2]} 32... Rg8+ {[%clk 0:00:24.7]} 33.
Kf2 {[%clk 0:00:23.1]} 33... Nxf5 {[%clk 0:00:12.3]} 34. Bxf5 {[%clk 0:00:23.1]}
34... exf5 {[%clk 0:00:13.2]} 35. e6+ {[%clk 0:00:24]} 35... Ke8 {[%clk
0:00:10.8]} 36. Rg1 {[%clk 0:00:24]} 36... Ke7 {[%clk 0:00:07.8]} 37. Rce1
{[%clk 0:00:13.3]} 37... Rxg1 {[%clk 0:00:07.3]} 38. Bb4+ {[%clk 0:00:11.2]}
38... Kf6 {[%clk 0:00:06.9]} 39. Rxg1 {[%clk 0:00:11.4]} 39... Kxe6 {[%clk
0:00:05.2]} 40. Rg6+ {[%clk 0:00:11.2]} 40... Kf7 {[%clk 0:00:05.5]} 41. Ne5+
{[%clk 0:00:11.4]} 1-0

[Event "Late-Titled-Tuesday-Blitz-December-26-2023"]
[Site "Chess.com"]
[Date "2023.12.26"]
[Round "2"]
[White "carokannlover213"]
[Black "Rafael_Ventura"]
[Result "1-0"]
[WhiteElo "2677"]
[BlackElo "2367"]
[TimeControl "180+1"]
[EndTime "14:17:55 PST"]
[Termination "carokannlover213 won by resignation"]

1. c4 {[%clk 0:03:00.9]} 1... e5 {[%clk 0:02:59.2]} 2. Nc3 {[%clk 0:03:00]} 2...
Nf6 {[%clk 0:02:56]} 3. Nf3 {[%clk 0:02:59.9]} 3... Nc6 {[%clk 0:02:56.1]} 4. e3
{[%clk 0:02:58]} 4... g6 {[%clk 0:02:53.2]} 5. d4 {[%clk 0:02:45.7]} 5... exd4
{[%clk 0:02:52.6]} 6. exd4 {[%clk 0:02:46]} 6... Bg7 {[%clk 0:02:49.7]} 7. d5
{[%clk 0:02:45.2]} 7... Ne7 {[%clk 0:02:48.1]} 8. Be2 {[%clk 0:02:45]} 8... d6
{[%clk 0:02:47.3]} 9. O-O {[%clk 0:02:45.9]} 9... O-O {[%clk 0:02:46.5]} 10. Nd4
{[%clk 0:02:44.7]} 10... a6 {[%clk 0:02:45.6]} 11. a4 {[%clk 0:02:40.7]} 11...
Nf5 {[%clk 0:02:45.8]} 12. Bg5 {[%clk 0:02:38]} 12... h6 {[%clk 0:02:43.2]} 13.
Nxf5 {[%clk 0:02:36.5]} 13... Bxf5 {[%clk 0:02:41.7]} 14. Be3 {[%clk 0:02:37]}
14... Re8 {[%clk 0:02:36.2]} 15. Qd2 {[%clk 0:02:34.8]} 15... Kh7 {[%clk
0:02:30.2]} 16. h3 {[%clk 0:02:27.6]} 16... Ne4 {[%clk 0:02:27.7]} 17. Nxe4
{[%clk 0:02:26.5]} 17... Bxe4 {[%clk 0:02:28.3]} 18. Rfe1 {[%clk 0:02:23.9]}
18... Bf5 {[%clk 0:02:25.5]} 19. a5 {[%clk 0:02:14.9]} 19... Qf6 {[%clk
0:02:13.3]} 20. Ra3 {[%clk 0:01:28.7]} 20... Qxb2 {[%clk 0:01:42.9]} 21. Qxb2
{[%clk 0:01:28.2]} 21... Bxb2 {[%clk 0:01:43.8]} 22. Rb3 {[%clk 0:01:28.7]}
22... Bf6 {[%clk 0:01:44.3]} 23. Rxb7 {[%clk 0:01:17]} 23... Bc3 {[%clk
0:01:42.2]} 24. Rc1 {[%clk 0:01:16.3]} 24... Bxa5 {[%clk 0:01:42.2]} 25. g4
{[%clk 0:01:03]} 25... Bc8 {[%clk 0:01:35.2]} 26. Rb3 {[%clk 0:01:02.7]} 26...
Rxe3 {[%clk 0:01:27.4]} 27. fxe3 {[%clk 0:00:58.9]} 27... Bb6 {[%clk 0:01:27.8]}
28. Kg2 {[%clk 0:00:58.3]} 28... a5 {[%clk 0:01:25.6]} 29. Ra1 {[%clk
0:00:57.1]} 29... Bd7 {[%clk 0:01:25.1]} 30. Bd1 {[%clk 0:00:56.7]} 30... a4
{[%clk 0:01:12.1]} 31. Rba3 {[%clk 0:00:44]} 31... Bc5 {[%clk 0:01:11.7]} 32.
Bxa4 {[%clk 0:00:41.2]} 32... Bxa3 {[%clk 0:00:57.2]} 33. Bxd7 {[%clk
0:00:41.3]} 33... Rd8 {[%clk 0:00:58]} 34. Rxa3 {[%clk 0:00:21]} 34... Rxd7
{[%clk 0:00:58]} 35. Ra7 {[%clk 0:00:21.5]} 35... Re7 {[%clk 0:00:57.6]} 36. Kf3
{[%clk 0:00:21.8]} 36... Kg7 {[%clk 0:00:58.2]} 37. Kf4 {[%clk 0:00:22]} 37...
Kf6 {[%clk 0:00:58.3]} 38. Rb7 {[%clk 0:00:19]} 38... g5+ {[%clk 0:00:57.2]} 39.
Kf3 {[%clk 0:00:19.2]} 39... Kg6 {[%clk 0:00:50]} 40. Ra7 {[%clk 0:00:18.7]}
40... h5 {[%clk 0:00:49.3]} 41. Ra6 {[%clk 0:00:17.8]} 41... h4 {[%clk
0:00:44.4]} 42. c5 {[%clk 0:00:14.1]} 42... Rd7 {[%clk 0:00:41.9]} 43. Ke4
{[%clk 0:00:12]} 43... Kf6 {[%clk 0:00:41.7]} 44. Kd4 {[%clk 0:00:12.2]} 44...
Ke7 {[%clk 0:00:38.2]} 45. Ra7 {[%clk 0:00:08.8]} 45... f6 {[%clk 0:00:36.6]}
46. c6 {[%clk 0:00:08.4]} 46... Rd8 {[%clk 0:00:35]} 47. Rxc7+ {[%clk 0:00:09]}
47... Kf8 {[%clk 0:00:35.7]} 48. Rh7 {[%clk 0:00:09.3]} 48... Kg8 {[%clk
0:00:32.9]} 49. Rd7 {[%clk 0:00:09.7]} 49... Ra8 {[%clk 0:00:31.2]} 50. c7
{[%clk 0:00:09.7]} 1-0

[Event "Late-Titled-Tuesday-Blitz-December-26-2023"]
[Site "Chess.com"]
[Date "2023.12.26"]
[Round "2"]
[White "German_Bazeev"]
[Black "NCchamp"]
[Result "1-0"]
[WhiteElo "2854"]
[BlackElo "2343"]
[TimeControl "180+1"]
[EndTime "14:17:58 PST"]
[Termination "German_Bazeev won by resignation"]

1. d4 {[%clk 0:03:00.9]} 1... d5 {[%clk 0:02:56.8]} 2. Nf3 {[%clk 0:03:00.8]}
2... Nf6 {[%clk 0:02:56.8]} 3. c4 {[%clk 0:03:01.4]} 3... dxc4 {[%clk 0:02:57]}
4. e3 {[%clk 0:03:01.3]} 4... a6 {[%clk 0:02:53.1]} 5. Bxc4 {[%clk 0:03:01.4]}
5... Bg4 {[%clk 0:02:51.9]} 6. Be2 {[%clk 0:02:59.8]} 6... e6 {[%clk 0:02:51.4]}
7. h3 {[%clk 0:03:00.4]} 7... Bh5 {[%clk 0:02:50]} 8. Nbd2 {[%clk 0:03:01]} 8...
Nbd7 {[%clk 0:02:46.3]} 9. O-O {[%clk 0:03:01]} 9... c5 {[%clk 0:02:46.3]} 10.
b3 {[%clk 0:02:57.7]} 10... cxd4 {[%clk 0:02:42.4]} 11. Nxd4 {[%clk 0:02:55.8]}
11... Bxe2 {[%clk 0:02:41.1]} 12. Qxe2 {[%clk 0:02:56.7]} 12... Be7 {[%clk
0:02:40.4]} 13. Bb2 {[%clk 0:02:56.7]} 13... O-O {[%clk 0:02:40.2]} 14. Nc4
{[%clk 0:02:57.4]} 14... b5 {[%clk 0:02:35.7]} 15. Nc6 {[%clk 0:02:46.4]} 15...
Qe8 {[%clk 0:02:34.8]} 16. Nxe7+ {[%clk 0:02:41.8]} 16... Qxe7 {[%clk
0:02:34.4]} 17. Ba3 {[%clk 0:02:42.4]} 17... b4 {[%clk 0:02:32.3]} 18. Bb2
{[%clk 0:02:43]} 18... Nc5 {[%clk 0:02:18.2]} 19. Rac1 {[%clk 0:02:35.8]} 19...
Rab8 {[%clk 0:02:10.2]} 20. Rfd1 {[%clk 0:02:34.3]} 20... Rfc8 {[%clk 0:02:05]}
21. Be5 {[%clk 0:02:32.7]} 21... Nd5 {[%clk 0:01:30.8]} 22. Bxb8 {[%clk
0:02:26.2]} 22... Rxb8 {[%clk 0:01:21.3]} 23. Ne5 {[%clk 0:01:34]} 23... Qc7
{[%clk 0:00:48.9]} 24. Nxf7 {[%clk 0:01:15.3]} 24... Kxf7 {[%clk 0:00:32.5]} 25.
Qh5+ {[%clk 0:01:08.6]} 25... Kg8 {[%clk 0:00:32]} 26. Rxd5 {[%clk 0:01:05.1]}
26... exd5 {[%clk 0:00:21.7]} 27. Qxd5+ {[%clk 0:01:06]} 27... Kh8 {[%clk
0:00:20.8]} 28. Qxc5 {[%clk 0:01:02.9]} 28... Qb7 {[%clk 0:00:13.8]} 29. Qc7
{[%clk 0:01:00.8]} 29... h6 {[%clk 0:00:13.4]} 30. Qxb7 {[%clk 0:01:00.2]} 30...
Rxb7 {[%clk 0:00:14.3]} 31. Rc6 {[%clk 0:00:59.6]} 31... a5 {[%clk 0:00:07.7]}
32. Ra6 {[%clk 0:00:59.5]} 32... Rb5 {[%clk 0:00:06.3]} 33. g4 {[%clk
0:01:00.1]} 33... Kh7 {[%clk 0:00:05.3]} 34. Kg2 {[%clk 0:00:59.7]} 34... Rd5
{[%clk 0:00:05.5]} 35. h4 {[%clk 0:00:58.5]} 35... Rc5 {[%clk 0:00:05.7]} 36. h5
{[%clk 0:00:57]} 36... Re5 {[%clk 0:00:05.7]} 37. Ra7 {[%clk 0:00:54.8]} 37...
Rc5 {[%clk 0:00:03.5]} 38. Kg3 {[%clk 0:00:53.6]} 38... Rb5 {[%clk 0:00:03.9]}
39. f4 {[%clk 0:00:53.9]} 39... Rc5 {[%clk 0:00:04]} 40. f5 {[%clk 0:00:53.5]}
40... Kg8 {[%clk 0:00:03.2]} 41. e4 {[%clk 0:00:53.8]} 41... Rc2 {[%clk
0:00:03.5]} 42. Rxa5 {[%clk 0:00:53.3]} 42... Rc3+ {[%clk 0:00:03.8]} 43. Kf4
{[%clk 0:00:53.4]} 43... Rc2 {[%clk 0:00:03.8]} 44. Ra8+ {[%clk 0:00:53.3]}
44... Kh7 {[%clk 0:00:04]} 45. Ra7 {[%clk 0:00:54.2]} 45... Kg8 {[%clk
0:00:04.3]} 46. e5 {[%clk 0:00:54.6]} 46... Rf2+ {[%clk 0:00:04.1]} 47. Kg3
{[%clk 0:00:53.7]} 47... Re2 {[%clk 0:00:04.2]} 48. e6 {[%clk 0:00:54.3]} 48...
Re3+ {[%clk 0:00:04.2]} 49. Kf4 {[%clk 0:00:54.1]} 49... Re1 {[%clk 0:00:05.1]}
50. Ra4 {[%clk 0:00:52.6]} 50... Re4+ {[%clk 0:00:03.1]} 51. Kxe4 {[%clk
0:00:50.4]} 1-0

[Event "Late-Titled-Tuesday-Blitz-December-26-2023"]
[Site "Chess.com"]
[Date "2023.12.26"]
[Round "2"]
[White "Durarbayli"]
[Black "Andrej2004"]
[Result "1-0"]
[WhiteElo "2891"]
[BlackElo "2563"]
[TimeControl "180+1"]
[EndTime "14:18:07 PST"]
[Termination "Durarbayli won by resignation"]

1. c4 {[%clk 0:03:00.9]} 1... e5 {[%clk 0:02:55.1]} 2. d3 {[%clk 0:02:58.9]}
2... Nc6 {[%clk 0:02:55.4]} 3. Nf3 {[%clk 0:02:59]} 3... f5 {[%clk 0:02:55.7]}
4. a3 {[%clk 0:02:57.3]} 4... Nf6 {[%clk 0:02:55.5]} 5. Nc3 {[%clk 0:02:56.1]}
5... g6 {[%clk 0:02:50.8]} 6. b4 {[%clk 0:02:47.2]} 6... d6 {[%clk 0:02:46.8]}
7. b5 {[%clk 0:02:38.6]} 7... Ne7 {[%clk 0:02:46.1]} 8. g3 {[%clk 0:02:38.8]}
8... Bg7 {[%clk 0:02:45.6]} 9. Bd2 {[%clk 0:02:38]} 9... O-O {[%clk 0:02:45.6]}
10. Bg2 {[%clk 0:02:38.2]} 10... h6 {[%clk 0:02:45.9]} 11. O-O {[%clk
0:02:37.9]} 11... g5 {[%clk 0:02:46.2]} 12. a4 {[%clk 0:02:31.2]} 12... a5
{[%clk 0:02:39.8]} 13. Qb3 {[%clk 0:02:05.1]} 13... Kh8 {[%clk 0:02:36.1]} 14.
b6 {[%clk 0:02:02.6]} 14... c6 {[%clk 0:02:35.2]} 15. c5 {[%clk 0:01:53.9]}
15... e4 {[%clk 0:02:10.4]} 16. dxe4 {[%clk 0:01:34]} 16... fxe4 {[%clk
0:02:03.4]} 17. Ne1 {[%clk 0:01:27.5]} 17... d5 {[%clk 0:02:00.1]} 18. Nc2
{[%clk 0:01:19.4]} 18... Nf5 {[%clk 0:01:50.7]} 19. f3 {[%clk 0:00:43.4]} 19...
e3 {[%clk 0:01:06.6]} 20. Nxe3 {[%clk 0:00:26.5]} 20... Qe7 {[%clk 0:01:02.6]}
21. Nxf5 {[%clk 0:00:25.4]} 21... Bxf5 {[%clk 0:01:03.5]} 22. e4 {[%clk
0:00:20.1]} 22... Qxc5+ {[%clk 0:00:54.8]} 23. Kh1 {[%clk 0:00:20.3]} 23... Be6
{[%clk 0:00:50.6]} 24. Rac1 {[%clk 0:00:14.7]} 24... Qe7 {[%clk 0:00:48.5]} 25.
Qb1 {[%clk 0:00:07.3]} 25... Rad8 {[%clk 0:00:40.2]} 26. e5 {[%clk 0:00:07.4]}
26... Nd7 {[%clk 0:00:39.7]} 27. f4 {[%clk 0:00:08]} 27... gxf4 {[%clk 0:00:34]}
28. gxf4 {[%clk 0:00:08.9]} 28... Bf5 {[%clk 0:00:32.5]} 29. Qb3 {[%clk
0:00:06.7]} 29... Qe6 {[%clk 0:00:29.3]} 30. Ne2 {[%clk 0:00:07]} 30... Rg8
{[%clk 0:00:26.7]} 31. Nd4 {[%clk 0:00:07.1]} 31... Qf7 {[%clk 0:00:26.3]} 32.
Nxf5 {[%clk 0:00:07.6]} 32... Qxf5 {[%clk 0:00:27.2]} 33. Rg1 {[%clk 0:00:05]}
33... Bf8 {[%clk 0:00:23.6]} 34. Qf3 {[%clk 0:00:03.1]} 34... Nc5 {[%clk
0:00:22.4]} 35. Bh3 {[%clk 0:00:02.7]} 35... Qe4 {[%clk 0:00:22.7]} 36. Rxg8+
{[%clk 0:00:02.6]} 36... Kxg8 {[%clk 0:00:23]} 37. Bg2 {[%clk 0:00:02]} 37...
Kh8 {[%clk 0:00:16.8]} 38. Qxe4 {[%clk 0:00:01.4]} 38... dxe4 {[%clk 0:00:16.9]}
39. Be1 {[%clk 0:00:02.2]} 39... Nd3 {[%clk 0:00:16.5]} 40. Rb1 {[%clk
0:00:02.9]} 40... Nxe1 {[%clk 0:00:16.8]} 41. Rxe1 {[%clk 0:00:03.8]} 41... Rd4
{[%clk 0:00:16.5]} 42. Bxe4 {[%clk 0:00:04.3]} 42... Rxa4 {[%clk 0:00:15.3]} 43.
f5 {[%clk 0:00:05]} 43... Rb4 {[%clk 0:00:15.4]} 44. f6 {[%clk 0:00:05.6]} 44...
a4 {[%clk 0:00:13.7]} 45. e6 {[%clk 0:00:06.1]} 45... Kg8 {[%clk 0:00:12.5]} 46.
e7 {[%clk 0:00:06.6]} 46... Bxe7 {[%clk 0:00:11.1]} 47. fxe7 {[%clk 0:00:07.5]}
47... Kf7 {[%clk 0:00:11.7]} 48. Bg6+ {[%clk 0:00:08.2]} 48... Kg7 {[%clk
0:00:11.2]} 49. e8=Q {[%clk 0:00:09.1]} 1-0